fUSD/lending_fUSD_20251006
["ID","MTS","AMOUNT","RATE_DAILY","PERIOD"]
[389561656,1759713076250,-500.0,0.00016438,2]
[389561657,1759713076259,-2215.13,0.00016438,2]
[389561658,1759713076268,-500.0,0.00016438,2]
[389561659,1759713076278,-2215.13,0.00016438,2]
[389561660,1759713076287,-500.0,0.00016438,2]
[389561661,1759713076296,-2215.13,0.00016438,2]
[389561662,1759713076306,-2215.13,0.00016438,2]
[389561663,1759713076315,-500.0,0.00016438,2]
[389561664,1759713076324,-2215.13,0.00016438,2]
[389561665,1759713076335,-500.0,0.00016438,2]
[389561666,1759713076346,-2215.13,0.00016438,2]
[389561667,1759713076355,-500.0,0.00016438,2]
[389561668,1759713076364,-2215.13,0.00016438,2]
[389561669,1759713076373,-521.76,0.00016438,2]
[389561670,1759713076382,-2215.13,0.00016438,2]
[389561671,1759713076391,-503.25466441,0.00016438,2]
[389561672,1759713076400,-2215.13,0.00016438,2]
[389561673,1759713076410,-344.24661998,0.00016438,2]
[389561674,1759713076418,-2215.13,0.00016438,2]
[389561675,1759713076427,-2215.13,0.00016438,2]
[389561676,1759713076437,-2215.13,0.00016438,2]
[389561677,1759713076446,-2215.13,0.00016438,2]
[389561678,1759713076455,-2215.13,0.00016438,2]
[389561679,1759713076464,-2215.13,0.00016438,2]
[389561680,1759713076473,-2215.31,0.00016438,2]
[389561681,1759713076483,-500.0,0.00016438,2]
[389561682,1759713076492,-500.0,0.00016438,2]
[389561683,1759713076501,-500.0,0.00016438,2]
[389561684,1759713076510,-288.13947141,0.00016438,2]
[389561685,1759713076519,-513.24,0.00016438,2]
[389561686,1759713076530,-500.0,0.00016438,2]
[389561687,1759713076539,-500.0,0.00016438,2]
[389561688,1759713076549,-500.0,0.00016438,2]
[389561689,1759713076558,-500.0,0.00016438,2]
[389561690,1759713076568,-500.0,0.00016438,2]
[389561691,1759713076576,-500.0,0.00016438,2]
[389561692,1759713076586,-500.0,0.00016438,2]
[389561693,1759713076595,-500.0,0.00016438,2]
[389561694,1759713076604,-500.0,0.00016438,2]
[389561695,1759713076614,-500.0,0.00016438,2]
[389561696,1759713076624,-500.0,0.00016438,2]
[389561697,1759713076634,-500.0,0.00016438,2]
[389561698,1759713076643,-500.0,0.00016438,2]
[389561699,1759713076654,-500.0,0.00016438,2]
[389561700,1759713076663,-500.0,0.00016438,2]
[389561701,1759713076672,-500.0,0.00016438,2]
[389561702,1759713076682,-498.11779835,0.00016438,2]
[389561703,1759713076691,-500.0,0.00016438,2]
[389561704,1759713076701,-500.0,0.00016438,2]
[389561705,1759713076710,-500.0,0.00016438,2]
[389561706,1759713076720,-500.0,0.00016438,2]
[389561707,1759713076729,-500.0,0.00016438,2]
[389561708,1759713076739,-500.0,0.00016438,2]
[389561709,1759713076748,-500.0,0.00016438,2]
[389561710,1759713076758,-500.0,0.00016438,2]
[389561711,1759713076767,-500.0,0.00016438,2]
[389561712,1759713076777,-477.76881182,0.00016438,2]
[389561713,1759713076787,-151.0,0.00016438,2]
[389561714,1759713076796,-151.0,0.00016438,2]
[389561715,1759713076805,-150.56970518,0.00016438,2]
[389561716,1759713076815,-151.0,0.00016438,2]
[389561717,1759713076824,-151.0,0.00016438,2]
[389561718,1759713076834,-500.0,0.00016438,2]
[389561719,1759713076844,-1561.89,0.00016438,2]
[389561720,1759713076853,-151.0,0.00016438,2]
[389561721,1759713076862,-1561.89,0.00016438,2]
[389561722,1759713076871,-500.0,0.00016438,2]
[389561723,1759713076880,-1561.89,0.00016438,2]
[389561724,1759713076890,-151.0,0.00016438,2]
[389561725,1759713076898,-500.0,0.00016438,2]
[389561726,1759713076908,-1561.89,0.00016438,2]
[389561727,1759713076918,-517.15056775,0.00016438,2]
[389561728,1759713076928,-1561.89,0.00016438,2]
[389561729,1759713076937,-500.0,0.00016438,2]
[389561730,1759713076947,-500.0,0.00016438,2]
[389561731,1759713076956,-1561.89,0.00016438,2]
[389561732,1759713076966,-1561.89,0.00016438,2]
[389561733,1759713076975,-151.0,0.00016438,2]
[389561734,1759713076985,-1561.89,0.00016438,2]
[389561735,1759713076995,-500.0,0.00016438,2]
[389561736,1759713077005,-151.0,0.00016438,2]
[389561737,1759713077015,-1561.89,0.00016438,2]
[389561738,1759713077026,-154.86496345,0.00016438,2]
[389561739,1759713077036,-1561.89,0.00016438,2]
[389561740,1759713077046,-1561.89,0.00016438,2]
[389561741,1759713077056,-1561.89,0.00016438,2]
[389561742,1759713077067,-1561.89,0.00016438,2]
[389561743,1759713077076,-1561.89,0.00016438,2]
[389561744,1759713077091,-151.0,0.00016438,2]
[389561745,1759713077102,-1561.89,0.00016438,2]
[389561746,1759713077111,-151.0,0.00016438,2]
[389561747,1759713077121,-1561.89,0.00016438,2]
[389561748,1759713077131,-1561.89,0.00016438,2]
[389561749,1759713077140,-500.0,0.00016438,2]
[389561750,1759713077150,-1561.89,0.00016438,2]
[389561751,1759713077162,-500.0,0.00016438,2]
[389561752,1759713077172,-1561.89,0.00016438,2]
[389561753,1759713077181,-500.0,0.00016438,2]
[389561754,1759713077191,-1561.89,0.00016438,2]
[389561755,1759713077200,-500.0,0.00016438,2]
[389561756,1759713077210,-300.847002,0.00016438,2]
[389561757,1759713077219,-1561.89,0.00016438,2]
[389561758,1759713077229,-325.7635686,0.00016438,2]
[389561759,1759713077238,-1561.89,0.00016438,2]
[389561760,1759713077248,-1561.89,0.00016438,2]
[389561761,1759713077257,-1000.0,0.00016438,2]
[389561762,1759713077266,-223.22,0.00016438,2]
[389561763,1759713077276,-1000.0,0.00016438,2]
[389561764,1759713077286,-635.47187109,0.00016438,2]
[389561765,1759713077295,-509.84,0.00016459,2]
[389561766,1759713077305,-300.0,0.00016466,2]
[389561767,1759713077314,-500.0,0.00016473,2]
[389561768,1759713077324,-500.0,0.00016473,2]
[389561769,1759713077334,-500.0,0.00016473,2]
[389561770,1759713077342,-500.0,0.00016473,2]
[389561771,1759713077351,-500.0,0.00016473,2]
[389561772,1759713077360,-500.0,0.00016473,2]
[389561773,1759713077369,-500.0,0.00016473,2]
[389561774,1759713077378,-500.0,0.00016473,2]
[389561775,1759713077387,-500.0,0.00016473,2]
[389561776,1759713077396,-500.0,0.00016473,2]
[389561777,1759713077404,-500.0,0.00016473,2]
[389561778,1759713077414,-500.0,0.00016473,2]
[389561779,1759713077423,-500.0,0.00016473,2]
[389561780,1759713077432,-500.0,0.00016473,2]
[389561781,1759713077441,-500.0,0.00016473,2]
[389561782,1759713077452,-161.29477841,0.00016473,2]
[389561783,1759713077462,-1316.01,0.00016539,2]
[389561784,1759713077471,-500.0,0.00016548,2]
[389561785,1759713077480,-168.82,0.00016569,2]
[389561786,1759713077490,-6450.00403473,0.0001659,2]
[389561787,1759713077500,-2000.0,0.00016611,2]
[389561788,1759713077510,-2000.0,0.00016616,2]
[389561789,1759713077519,-500.0,0.00016673,2]
[389561790,1759713077529,-163.0,0.00016712,2]
[389561791,1759713077537,-334.5472959,0.00016766,2]
[389561792,1759713077547,-239.84119403,0.00016766,2]
[389561793,1759713077556,-700.0,0.0001677,2]
[389561794,1759713077566,-368.52169347,0.0001677,2]
[389561795,1759713077575,-412.85,0.00016777,2]
[389561796,1759713077585,-154.275796,0.00016788,3]
[389561797,1759713077594,-2599.23547,0.00016788,3]
[389561798,1759713077603,-2020.976597,0.00016788,3]
[389561799,1759713077612,-410.884823,0.00016788,3]
[389561800,1759713077621,-370.65517587,0.0001679,3]
[389561801,1759713077630,-402.0,0.000168,2]
[389561802,1759713077640,-1316.01,0.00016813,2]
[389561803,1759713077649,-1000.0,0.00016839,2]
[389561804,1759713077658,-1000.0,0.00016839,2]
[389561805,1759713077667,-1000.0,0.00016839,2]
[389561806,1759713077677,-1000.0,0.00016839,2]
[389561807,1759713077687,-1000.0,0.00016839,2]
[389561808,1759713077696,-1000.0,0.00016839,2]
[389561809,1759713077705,-1000.0,0.00016839,2]
[389561810,1759713077715,-1000.0,0.00016839,2]
[389561811,1759713077724,-1985.57068,0.0001685,2]
[389561812,1759713077733,-204.0,0.0001687,2]
[389561813,1759713077743,-411.0,0.00016911,2]
[389561814,1759713077753,-154.275796,0.00016984,2]
[389561815,1759713077762,-2599.23547,0.00016984,2]
[389561816,1759713077771,-153.274878,0.00016984,2]
[389561817,1759713077780,-150.901927,0.00016984,2]
[389561818,1759713077789,-2020.976597,0.00016984,2]
[389561819,1759713077799,-410.884823,0.00016984,2]
[389561820,1759713077809,-2090.0,0.00017,15]
[389561821,1759713077818,-250.0,0.00017,2]
[389561822,1759713077828,-10000.0,0.00017,2]
[389561823,1759713077838,-500.0,0.00017021,2]
[389561824,1759713077848,-1000.0,0.00017021,2]
[389561825,1759713077858,-1000.0,0.00017021,2]
[389561826,1759713077868,-318.222109,0.00017021,2]
[389561827,1759713077877,-1000.0,0.00017021,2]
[389561828,1759713077887,-1000.0,0.00017021,2]
[389561829,1759713077896,-263.0,0.00017033,2]
[389561830,1759713077906,-1316.01,0.00017087,2]
[389561831,1759713077916,-6781.22,0.000171,2]
[389561832,1759713077926,-1000.0,0.00017164,2]
[389561833,1759713077936,-172.46677105,0.00017183,2]
[389561834,1759713077945,-2776.107,0.00017189,2]
[389561835,1759713077955,-164.811,0.00017189,2]
[389561836,1759713077964,-341.0,0.00017231,2]
[389561837,1759713077974,-500.0,0.00017279,2]
[389561838,1759713077984,-3055.66227141,0.0001728,7]
[389561839,1759713077993,-1000.0,0.000173,2]
[389561840,1759713078003,-1316.04222519,0.00017361,2]
[389561841,1759713078013,-154.275796,0.00017425,3]
[389561842,1759713078022,-2599.23547,0.00017425,3]
[389561843,1759713078032,-153.274878,0.00017425,3]
[389561844,1759713078042,-150.901927,0.00017425,3]
[389561845,1759713078052,-2020.976597,0.00017425,3]
[389561846,1759713078061,-410.884823,0.00017425,3]
[389561847,1759713078071,-700.0,0.0001747,2]
[389561848,1759713078084,-1000.0,0.00017478,2]
[389561849,1759713078093,-1000.0,0.00017478,2]
[389561850,1759713078103,-1000.0,0.00017478,2]
[389561851,1759713078112,-1000.0,0.00017478,2]
[389561852,1759713078122,-1000.0,0.00017478,2]
[389561853,1759713078132,-1000.0,0.00017478,2]
[389561854,1759713078141,-1000.0,0.00017478,2]
[389561855,1759713078152,-1000.0,0.00017478,2]
[389561856,1759713078161,-2599.23547,0.000175,4]
[389561857,1759713078171,-2020.976597,0.000175,4]
[389561858,1759713078181,-410.884823,0.000175,4]
[389561859,1759713078190,-188.63319607,0.00017568,2]
[389561860,1759713078201,-1333.44443165,0.00017568,2]
[389561861,1759713078211,-1500.0,0.00017568,2]
[389561862,1759713078224,-500.0,0.00017568,2]
[389561863,1759713078234,-2599.23547,0.00017577,4]
[389561864,1759713078244,-2020.976597,0.00017577,4]
[389561865,1759713078253,-410.884823,0.00017577,4]
[389561866,1759713078263,-175.53413975,0.00017641,12]
[389561867,1759713078274,-154.275796,0.00017654,4]
[389561868,1759713078285,-2599.23547,0.00017654,4]
[389561869,1759713078294,-150.901927,0.00017654,4]
[389561870,1759713078304,-2020.976597,0.00017654,4]
[389561871,1759713078314,-410.884823,0.00017654,4]
[389561872,1759713078323,-154.275796,0.00017731,4]
[389561873,1759713078332,-2599.23547,0.00017731,4]
[389561874,1759713078342,-153.274878,0.00017731,4]
[389561875,1759713078353,-150.901927,0.00017731,4]
[389561876,1759713078363,-2020.976597,0.00017731,4]
[389561877,1759713078372,-410.884823,0.00017731,4]
[389561878,1759713078382,-10000.0,0.00017808,4]
[389561879,1759713078392,-156.113304,0.00017808,4]
[389561880,1759713078402,-154.275796,0.00017808,4]
[389561881,1759713078411,-2599.23547,0.00017808,4]
[389561882,1759713078420,-153.274878,0.00017808,4]
[389561883,1759713078429,-150.901927,0.00017808,4]
[389561884,1759713078438,-2020.976597,0.00017808,4]
[389561885,1759713078447,-410.884823,0.00017808,4]
[389561886,1759713078456,-1985.57067,0.0001785,2]
[389561887,1759713078466,-196.16,0.00017898,2]
[389561888,1759713078475,-394.0,0.0001798,2]
[389561889,1759713078483,-154.275796,0.00017982,2]
[389561890,1759713078493,-2599.23547,0.00017982,2]
[389561891,1759713078502,-156.113304,0.00017982,2]
[389561892,1759713078512,-153.274878,0.00017982,2]
[389561893,1759713078525,-150.901927,0.00017982,2]
[389561894,1759713078535,-2020.976597,0.00017982,2]
[389561895,1759713078545,-410.884823,0.00017982,2]
[389561896,1759713078554,-300.0,0.00017999,2]
[389561897,1759713078563,-421.73839881,0.00017999,2]
[389561898,1759713078572,-926755.59121391,0.00018,2]
[389561899,1759713078581,-2599.23547,0.00018,10]
[389561900,1759713078591,-2020.976597,0.00018,10]
[389561901,1759713078599,-410.884823,0.00018,10]
[389561902,1759713078609,-293.334369,0.00018,2]
[389561903,1759713078618,-164.822068,0.00018,2]
[389561904,1759713078627,-151.0,0.00018,2]
[389561905,1759713078637,-151.0,0.00018,2]
[389561906,1759713078646,-151.0,0.00018,2]
[389561907,1759713078655,-151.0,0.00018,2]
[389561908,1759713078667,-212.580928,0.00018,2]
[389561909,1759713078681,-151.0,0.00018,2]
[389561910,1759713078691,-154.275796,0.00018062,3]
[389561911,1759713078708,-2599.23547,0.00018062,3]
[389561912,1759713078721,-153.274878,0.00018062,3]
[389561913,1759713078731,-150.901927,0.00018062,3]
[389561914,1759713078740,-2020.976597,0.00018062,3]
[389561915,1759713078749,-410.884823,0.00018062,3]
[389561916,1759713078759,-2000.0,0.00018116,2]
[389561917,1759713078769,-346.92554585,0.00018135,2]
[389561918,1759713078778,-248.71531821,0.00018135,2]
[389561919,1759713078787,-2599.23547,0.00018181,10]
[389561920,1759713078797,-2020.976597,0.00018181,10]
[389561921,1759713078806,-410.884823,0.00018181,10]
[389561922,1759713078816,-1600.0,0.00018184,2]
[389561923,1759713078825,-150.0,0.00018288,2]
[389561924,1759713078834,-150.0,0.00018288,2]
[389561925,1759713078843,-150.0,0.00018288,2]
[389561926,1759713078852,-2046.0,0.00018288,2]
[389561927,1759713078861,-3401.0,0.00018288,2]
[389561928,1759713078871,-810.0,0.00018288,2]
[389561929,1759713078881,-1265.0,0.00018288,2]
[389561930,1759713078890,-1307.0,0.00018288,2]
[389561931,1759713078900,-603.0,0.00018288,2]
[389561932,1759713078909,-1586.0,0.00018288,2]
[389561933,1759713078919,-570.0,0.00018288,2]
[389561934,1759713078929,-815.0,0.00018288,2]
[389561935,1759713078938,-900.0,0.00018288,2]
[389561936,1759713078948,-4116.0,0.00018288,2]
[389561937,1759713078957,-6238.0,0.00018288,2]
[389561938,1759713078966,-621.0,0.00018288,2]
[389561939,1759713078975,-172.46677105,0.00018324,2]
[389561940,1759713078984,-10076.79,0.00018356,2]
[389561941,1759713078993,-154.275796,0.00018362,10]
[389561942,1759713079002,-2599.23547,0.00018362,10]
[389561943,1759713079011,-153.274878,0.00018362,10]
[389561944,1759713079021,-150.901927,0.00018362,10]
[389561945,1759713079031,-2020.976597,0.00018362,10]
[389561946,1759713079040,-410.884823,0.00018362,10]
[389561947,1759713079049,-500.0,0.00018375,2]
[389561948,1759713079058,-259277.80465801,0.000185,2]
[389561949,1759713079068,-152.0,0.00018506,3]
[389561950,1759713079078,-175.53413975,0.00018512,16]
[389561951,1759713079093,-515.0,0.00018515,2]
[389561952,1759713079102,-154.275796,0.00018543,10]
[389561953,1759713079111,-2599.23547,0.00018543,10]
[389561954,1759713079120,-153.274878,0.00018543,10]
[389561955,1759713079131,-150.901927,0.00018543,10]
[389561956,1759713079140,-2020.976597,0.00018543,10]
[389561957,1759713079149,-410.884823,0.00018543,10]
[389561958,1759713079160,-891.49050177,0.00018573,2]
[389561959,1759713079170,-198.56984466,0.00018594,2]
[389561960,1759713079181,-370.65517587,0.000186,10]
[389561961,1759713079191,-2463.19502041,0.00018617,2]
[389561962,1759713079202,-2000.0,0.0001863,2]
[389561963,1759713079211,-151.75,0.0001864,2]
[389561964,1759713079221,-2500.0,0.00018664,2]
[389561965,1759713079231,-152.0,0.0001867,4]
[389561966,1759713079240,-1000.0,0.00018679,2]
[389561967,1759713079249,-154.275796,0.000187,3]
[389561968,1759713079259,-156.113304,0.000187,3]
[389561969,1759713079268,-2599.23547,0.000187,3]
[389561970,1759713079278,-153.274878,0.000187,3]
[389561971,1759713079287,-150.901927,0.000187,3]
[389561972,1759713079297,-2020.976597,0.000187,3]
[389561973,1759713079307,-410.884823,0.000187,3]
[389561974,1759713079317,-156.113304,0.00018724,10]
[389561975,1759713079327,-154.275796,0.00018724,10]
[389561976,1759713079338,-2599.23547,0.00018724,10]
[389561977,1759713079348,-153.274878,0.00018724,10]
[389561978,1759713079357,-150.901927,0.00018724,10]
[389561979,1759713079367,-2020.976597,0.00018724,10]
[389561980,1759713079377,-410.884823,0.00018724,10]
[389561981,1759713079386,-200.0,0.00018729,2]
[389561982,1759713079396,-1425.0,0.00018733,2]
[389561983,1759713079406,-1000.0,0.00018741,2]
[389561984,1759713079416,-1000.0,0.00018766,2]
[389561985,1759713079425,-183.1818428,0.0001878,2]
[389561986,1759713079435,-1000.0,0.00018785,2]
[389561987,1759713079444,-862.42563884,0.00018801,2]
[389561988,1759713079454,-500.0,0.0001881,2]
[389561989,1759713079463,-150.0,0.0001881,2]
[389561990,1759713079472,-150.0,0.0001881,2]
[389561991,1759713079482,-1425.0,0.0001881,2]
[389561992,1759713079491,-500.0,0.0001881,2]
[389561993,1759713079501,-500.0,0.0001881,2]
[389561994,1759713079511,-150.0,0.0001881,2]
[389561995,1759713079521,-150.0,0.0001881,2]
[389561996,1759713079532,-150.0,0.0001881,2]
[389561997,1759713079542,-150.0,0.0001881,2]
[389561998,1759713079552,-150.0,0.0001881,2]
[389561999,1759713079561,-1079.0,0.0001881,2]
[389562000,1759713079571,-150.0,0.0001881,2]
[389562001,1759713079581,-150.0,0.0001881,2]
[389562002,1759713079590,-150.0,0.0001881,2]
[389562003,1759713079600,-150.0,0.0001881,2]
[389562004,1759713079610,-444.0,0.0001881,2]
[389562005,1759713079619,-150.0,0.0001881,2]
[389562006,1759713079629,-653.0,0.0001881,2]
[389562007,1759713079638,-150.0,0.0001881,2]
[389562008,1759713079647,-150.0,0.0001881,2]
[389562009,1759713079657,-150.0,0.0001881,2]
[389562010,1759713079667,-200.0,0.0001881,2]
[389562011,1759713079676,-150.0,0.0001881,2]
[389562012,1759713079686,-150.0,0.0001881,2]
[389562013,1759713079696,-492.0,0.0001881,2]
[389562014,1759713079705,-150.0,0.0001881,2]
[389562015,1759713079715,-500.0,0.0001881,2]
[389562016,1759713079725,-500.0,0.0001881,2]
[389562017,1759713079734,-152.0,0.00018834,5]
[389562018,1759713079744,-1985.57068,0.0001885,2]
[389562019,1759713079754,-1000.0,0.00018852,2]
[389562020,1759713079763,-1000.0,0.00018858,2]
[389562021,1759713079773,-700.0,0.0001887,2]
[389562022,1759713079784,-300.0,0.00018879,2]
[389562023,1759713079793,-241945.68968217,0.0001888,2]
[389562024,1759713080438,-1945133.44561135,0.0001888,2]
[389562025,1759713080467,-316.220239,0.00016438,2]
[389562026,1759713080699,-256.11742584,0.00016438,2]
[389562027,1759713080726,-333.32271602,0.00016438,2]
[389562028,1759713081115,5389.0,0.000116,5]
[389562030,1759713127380,1407.0,0.00013116,2]
[389562031,1759713127641,1407.0,0.00013116,2]
[389562033,1759713185658,1267.0,0.00013116,2]
[389562039,1759713251743,1203.0,0.00013116,2]
[389562041,1759713272438,285.24,0.000164,120]
[389562046,1759713462281,256.72,0.000164,120]
[389562047,1759713502550,10000.0,0.00013116,2]
[389562049,1759713653581,231.05,0.000164,120]
[389562051,1759713842381,207.94,0.000164,120]
[389562055,1759714033456,187.15,0.000164,120]
[389562058,1759714223674,169.45,0.000164,120]
[389562067,1759714231921,-300.0,0.0001322,2]
[389562068,1759714231930,-1200.0,0.0001322,2]
[389562069,1759714231940,-338.00144704,0.00013221,2]
[389562070,1759714231949,-500.0,0.00013221,2]
[389562071,1759714231958,-500.0,0.00013221,2]
[389562072,1759714231969,-500.0,0.00013221,2]
[389562073,1759714231980,-288.57260698,0.00013221,2]
[389562074,1759714231989,-1058.0,0.00013241,2]
[389562075,1759714231998,-417.8,0.00013749,2]
[389562076,1759714232007,-150.0,0.00013878,2]
[389562077,1759714232017,-2308.20923231,0.00014,7]
[389562078,1759714232029,-586.51541478,0.00014,7]
[389562079,1759714232040,-741.47776478,0.00014,7]
[389562080,1759714232051,-780.94247861,0.00014,7]
[389562081,1759714232063,-1113.95510952,0.00014,7]
[389562082,1759714232072,-1166.05468005,0.00014261,2]
[389562083,1759714232081,-1200.0,0.000143,5]
[389562084,1759714232090,-4383.77725238,0.0001439,2]
[389562085,1759714232099,-2500.0,0.000144,5]
[389562086,1759714232108,-1668.1832798,0.000145,5]
[389562087,1759714232120,-2131.8167202,0.000145,5]
[389562088,1759714232129,-1226.0,0.00014542,2]
[389562089,1759714232138,-300.0,0.00014543,2]
[389562090,1759714232147,-300.0,0.00014545,2]
[389562091,1759714232156,-195.0,0.00014545,2]
[389562092,1759714232165,-150.0,0.00014546,2]
[389562093,1759714232175,-300.0,0.00014546,2]
[389562094,1759714232184,-5000.0,0.000146,5]
[389562095,1759714232193,-6300.0,0.000147,5]
[389562096,1759714232202,-278.1459,0.000147,2]
[389562098,1759714232212,-1454.8329,0.000147,2]
[389562100,1759714232221,-969.7303,0.000147,2]
[389562102,1759714232231,-666.0,0.00014743,3]
[389562104,1759714232240,-505.00849629,0.00014773,2]
[389562106,1759714232249,-500.0,0.00014773,2]
[389562108,1759714232258,-504.43820746,0.00014773,2]
[389562110,1759714232267,-1500.0,0.00014787,2]
[389562112,1759714232275,-243.8,0.0001479,2]
[389562114,1759714232285,-243.8,0.0001479,2]
[389562116,1759714232294,-243.8,0.0001479,2]
[389562118,1759714232303,-243.8,0.0001479,2]
[389562120,1759714232312,-243.8,0.0001479,2]
[389562122,1759714232322,-83487.55897572,0.000148,2]
[389562126,1759714232333,-26772.40031356,0.000148,2]
[389562133,1759714232348,-830.52072532,0.000148,2]
[389562141,1759714232369,-719.37505185,0.000148,2]
[389562145,1759714232380,-7478.0171202,0.000148,2]
[389562153,1759714237819,-63114.1445169,0.000148,2]
[389562154,1759714238077,-484.30291347,0.000148,2]
[389562192,1759714239755,-279.89771197,0.000148,2]
[389562193,1759714239847,-311.86127415,0.000148,2]
[389562194,1759714239859,-855.43458466,0.000148,2]
[389562195,1759714239870,-1352.59422969,0.000148,2]
[389562196,1759714240092,-1966123.81222388,0.000148,2]
[389562197,1759714240103,-1427.84265041,0.000148,2]
[389562213,1759714245752,-268.88328871,0.00013219,2]
[389562214,1759714245762,-239.59055425,0.0001322,2]
[389562215,1759714245771,-572.647131,0.00014725,2]
[389562216,1759714245780,-2637.86916951,0.000148,2]
[389562217,1759714246029,-3552.98099389,0.000148,2]
[389562218,1759714246040,-414.98733301,0.000148,2]
[389562219,1759714246051,-123935.28171968,0.000148,2]
[389562224,1759714414710,152.5,0.000164,120]
[389562228,1759714538759,158.4,6.951e-05,2]
[389562229,1759714538962,158.4,8.109e-05,2]
[389562230,1759714539186,158.4,9.267e-05,2]
[389562231,1759714539389,158.4,0.00010426,2]
[389562232,1759714539599,158.4,0.00011584,2]
[389562233,1759714539799,158.4,0.00012743,2]
[389562234,1759714604887,150.0,0.000162,120]
[389562242,1759714741778,218.62,0.00013116,2]
[389562245,1759714796168,330.56,0.000162,120]
[389562246,1759714797203,153.76998244,0.00015,20]
[389562247,1759714843570,555.0,0.00014,120]
[389562251,1759714988132,297.51,0.000162,120]
[389562252,1759715179761,267.76,0.000162,120]
[389562254,1759715191419,386.0,0.000128,2]
[389562256,1759715369574,240.98,0.000162,120]
[389562270,1759715432069,-158.0,0.00013484,2]
[389562271,1759715432078,-1200.0,0.00013484,2]
[389562272,1759715432087,-500.0,0.00013485,2]
[389562273,1759715432097,-500.0,0.00013485,2]
[389562274,1759715432107,-500.0,0.00013485,2]
[389562275,1759715432117,-647.75236326,0.00013485,2]
[389562276,1759715432126,-500.0,0.00013485,2]
[389562277,1759715432136,-500.0,0.00013485,2]
[389562278,1759715432146,-500.0,0.00013485,2]
[389562279,1759715432155,-500.0,0.00013485,2]
[389562280,1759715432164,-300.0,0.00013486,2]
[389562281,1759715432174,-150.0,0.00013488,2]
[389562282,1759715432184,-150.0,0.00013488,2]
[389562283,1759715432193,-153.2717905,0.00013488,2]
[389562284,1759715432202,-150.0,0.00013488,2]
[389562285,1759715432211,-150.0,0.00013488,2]
[389562286,1759715432221,-152.27346739,0.00013488,2]
[389562287,1759715432230,-151.30162608,0.00013488,2]
[389562288,1759715432240,-236.41364645,0.00013488,2]
[389562289,1759715432249,-150.0,0.00013488,2]
[389562290,1759715432262,-150.0,0.00013488,2]
[389562291,1759715432272,-150.0,0.00013488,2]
[389562292,1759715432282,-150.0,0.00013657,7]
[389562294,1759715432291,-1069.91,0.00013789,2]
[389562296,1759715432300,-150.0,0.00013862,2]
[389562298,1759715432309,-150.0,0.00013892,2]
[389562300,1759715432318,-158.4,0.00013901,2]
[389562302,1759715432327,-379.0,0.0001398,2]
[389562304,1759715432336,-150.0,0.00013987,2]
[389562306,1759715432346,-7408.48763836,0.00014,3]
[389562308,1759715432355,-3749.5937,0.0001411,2]
[389562310,1759715432364,-200.0,0.0001414,2]
[389562313,1759715432373,-154.0367535,0.0001414,2]
[389562315,1759715432382,-151.0,0.0001414,2]
[389562317,1759715432392,-162.6205697,0.0001414,2]
[389562319,1759715432401,-500.0,0.0001414,2]
[389562320,1759715432410,-500.0,0.0001414,2]
[389562321,1759715432419,-500.0,0.0001414,2]